[Event "*** SCC Grand Prix: Titled Tuesday Blitz"]
[Site "Chess.com"]
[Date "2020.07.21"]
[Round "10"]
[White "Shubinkirill2003"]
[Black "Makswolf200817"]
[Result "0-1"]
[WhiteElo "2625"]
[BlackElo "2496"]
[TimeControl "180+1"]
[EndTime "11:58:28 PDT"]
[Termination "Makswolf200817 won by resignation"]

1. e4 {[%clk 0:03:00.9]} 1... c5 {[%clk 0:02:59.8]} 2. Nf3 {[%clk 0:03:00.7]}
2... e6 {[%clk 0:02:59.5]} 3. g3 {[%clk 0:03:00.5]} 3... b6 {[%clk 0:02:54.5]}
4. Bg2 {[%clk 0:02:59.8]} 4... Bb7 {[%clk 0:02:54.8]} 5. Nc3 {[%clk 0:02:59.6]}
5... d6 {[%clk 0:02:53.8]} 6. O-O {[%clk 0:02:59.3]} 6... Nf6 {[%clk 0:02:53.7]}
7. Re1 {[%clk 0:02:57.9]} 7... Nbd7 {[%clk 0:02:53.7]} 8. d4 {[%clk 0:02:57.7]}
8... cxd4 {[%clk 0:02:52.6]} 9. Nxd4 {[%clk 0:02:58.6]} 9... a6 {[%clk
0:02:52.2]} 10. a4 {[%clk 0:02:52.2]} 10... Qc7 {[%clk 0:02:50.9]} 11. Bg5
{[%clk 0:02:46.7]} 11... Be7 {[%clk 0:02:50.3]} 12. Qd2 {[%clk 0:02:36.3]} 12...
h6 {[%clk 0:02:45.9]} 13. Be3 {[%clk 0:02:33.5]} 13... Ng4 {[%clk 0:02:34]} 14.
h3 {[%clk 0:02:31.6]} 14... Nxe3 {[%clk 0:02:33.5]} 15. Qxe3 {[%clk 0:02:32.5]}
15... O-O {[%clk 0:02:29.1]} 16. Rad1 {[%clk 0:02:31]} 16... Ne5 {[%clk
0:02:27.3]} 17. Bf1 {[%clk 0:02:26.4]} 17... Bf6 {[%clk 0:02:17]} 18. f4 {[%clk
0:02:25.2]} 18... Nc4 {[%clk 0:02:16.6]} 19. Bxc4 {[%clk 0:02:21.2]} 19... Qxc4
{[%clk 0:02:17.5]} 20. e5 {[%clk 0:02:19.8]} 20... dxe5 {[%clk 0:02:16.9]} 21.
fxe5 {[%clk 0:02:20.7]} 21... Bg5 {[%clk 0:02:16.8]} 22. Qe2 {[%clk 0:02:17.6]}
22... Qc5 {[%clk 0:02:06.4]} 23. h4 {[%clk 0:02:15.8]} 23... Rfd8 {[%clk
0:01:57.6]} 24. Qf2 {[%clk 0:02:08.9]} 24... Be7 {[%clk 0:01:53.5]} 25. Kh2
{[%clk 0:02:01.1]} 25... Rd7 {[%clk 0:01:43.3]} 26. Rf1 {[%clk 0:01:59.8]} 26...
Bf8 {[%clk 0:01:40.1]} 27. Qf4 {[%clk 0:01:40.9]} 27... Rad8 {[%clk 0:01:33.5]}
28. Nce2 {[%clk 0:01:38.4]} 28... Qd5 {[%clk 0:01:28.6]} 29. Rf2 {[%clk
0:01:33.2]} 29... Bc5 {[%clk 0:01:17.4]} 30. c3 {[%clk 0:01:32.3]} 30... a5
{[%clk 0:01:09.1]} 31. Qg4 {[%clk 0:01:06.9]} 31... Qxe5 {[%clk 0:01:04.6]} 32.
Rdf1 {[%clk 0:01:02.3]} 32... Qe4 {[%clk 0:00:59]} 33. Qh5 {[%clk 0:00:51.3]}
33... e5 {[%clk 0:00:47.8]} 0-1

[Event "*** SCC Grand Prix: Titled Tuesday Blitz"]
[Site "Chess.com"]
[Date "2020.07.21"]
[Round "10"]
[White "Gloomy_Wanderer"]
[Black "TargetA"]
[Result "1-0"]
[WhiteElo "2701"]
[BlackElo "2569"]
[TimeControl "180+1"]
[EndTime "11:58:31 PDT"]
[Termination "Gloomy_Wanderer won by resignation"]

1. d4 {[%clk 0:02:59.6]} 1... Nf6 {[%clk 0:02:59.3]} 2. Nf3 {[%clk 0:02:59.3]}
2... g6 {[%clk 0:02:59.8]} 3. c4 {[%clk 0:02:59.5]} 3... Bg7 {[%clk 0:03:00.1]}
4. g3 {[%clk 0:03:00.1]} 4... O-O {[%clk 0:03:00.4]} 5. Bg2 {[%clk 0:03:00.4]}
5... d6 {[%clk 0:03:01]} 6. O-O {[%clk 0:03:00.5]} 6... Nc6 {[%clk 0:03:01.6]}
7. Nc3 {[%clk 0:03:00.8]} 7... Nd7 {[%clk 0:03:01.3]} 8. Bg5 {[%clk 0:02:52.6]}
8... h6 {[%clk 0:02:57.8]} 9. Bc1 {[%clk 0:02:52.4]} 9... e5 {[%clk 0:02:55.5]}
10. dxe5 {[%clk 0:02:52]} 10... dxe5 {[%clk 0:02:49.2]} 11. Rb1 {[%clk
0:02:30.6]} 11... Nc5 {[%clk 0:02:34.6]} 12. Be3 {[%clk 0:02:25.4]} 12... Ne6
{[%clk 0:02:30.1]} 13. b4 {[%clk 0:02:18.9]} 13... f5 {[%clk 0:01:48.4]} 14. b5
{[%clk 0:02:16.7]} 14... Ncd4 {[%clk 0:01:48.2]} 15. Bxd4 {[%clk 0:02:13.1]}
15... exd4 {[%clk 0:01:46.5]} 16. Nd5 {[%clk 0:02:12.9]} 16... c6 {[%clk
0:01:42.8]} 17. bxc6 {[%clk 0:02:09.2]} 17... bxc6 {[%clk 0:01:43.7]} 18. Nb4
{[%clk 0:02:09.9]} 18... Qd6 {[%clk 0:01:39.7]} 19. Nxc6 {[%clk 0:02:03.1]}
19... Qxc6 {[%clk 0:01:36.6]} 20. Nh4 {[%clk 0:02:02.5]} 20... Qxc4 {[%clk
0:01:25.4]} 21. Bxa8 {[%clk 0:02:02.1]} 21... Ba6 {[%clk 0:01:16.7]} 22. Bb7
{[%clk 0:02:01.8]} 22... Qxe2 {[%clk 0:01:07.6]} 23. Bxa6 {[%clk 0:01:46.5]}
23... Qxa6 {[%clk 0:01:07.3]} 24. Nxg6 {[%clk 0:01:46.8]} 24... Rd8 {[%clk
0:00:52.3]} 25. Ne7+ {[%clk 0:01:36.1]} 25... Kh8 {[%clk 0:00:51.9]} 26. Nxf5
{[%clk 0:01:35.9]} 26... Ng5 {[%clk 0:00:49.4]} 27. Nxg7 {[%clk 0:01:31.2]}
27... Qc6 {[%clk 0:00:47.7]} 28. f3 {[%clk 0:01:10.4]} 28... Kxg7 {[%clk
0:00:48.1]} 29. Qd3 {[%clk 0:01:09.7]} 29... Kg8 {[%clk 0:00:38.6]} 30. Rbc1
{[%clk 0:01:07.9]} 30... Qa8 {[%clk 0:00:33.9]} 31. Qg6+ {[%clk 0:01:07.1]}
31... Kh8 {[%clk 0:00:32.2]} 32. Qxh6+ {[%clk 0:01:07.3]} 32... Nh7 {[%clk
0:00:32.8]} 33. Rc7 {[%clk 0:01:07.3]} 1-0

[Event "*** SCC Grand Prix: Titled Tuesday Blitz"]
[Site "Chess.com"]
[Date "2020.07.21"]
[Round "10"]
[White "RestartingChess"]
[Black "Dauletova"]
[Result "1-0"]
[WhiteElo "2526"]
[BlackElo "2343"]
[TimeControl "180+1"]
[EndTime "11:58:34 PDT"]
[Termination "RestartingChess won by resignation"]

1. e4 {[%clk 0:03:00.9]} 1... e5 {[%clk 0:02:59.9]} 2. Nf3 {[%clk 0:03:01.4]}
2... Nc6 {[%clk 0:03:00.2]} 3. Bc4 {[%clk 0:03:01.9]} 3... Bc5 {[%clk
0:02:59.4]} 4. c3 {[%clk 0:03:02.5]} 4... Nf6 {[%clk 0:02:58.4]} 5. O-O {[%clk
0:03:03.2]} 5... Nxe4 {[%clk 0:02:51.9]} 6. d4 {[%clk 0:03:03.7]} 6... exd4
{[%clk 0:02:40]} 7. cxd4 {[%clk 0:03:03.2]} 7... Be7 {[%clk 0:01:43.6]} 8. d5
{[%clk 0:02:37.8]} 8... Na5 {[%clk 0:01:43.1]} 9. Bd3 {[%clk 0:02:33.9]} 9...
Nc5 {[%clk 0:01:00.7]} 10. b4 {[%clk 0:02:33]} 10... Nxd3 {[%clk 0:01:00.7]} 11.
Qxd3 {[%clk 0:02:33.9]} 11... Bxb4 {[%clk 0:00:59]} 12. Bb2 {[%clk 0:02:30.2]}
12... f6 {[%clk 0:00:40.3]} 13. Qb5 {[%clk 0:02:21.8]} 13... Qe7 {[%clk
0:00:37]} 14. a3 {[%clk 0:02:20.5]} 14... Nb3 {[%clk 0:00:07.8]} 15. Ra2 {[%clk
0:02:15.5]} 15... a6 {[%clk 0:00:04.6]} 16. Qxb4 {[%clk 0:02:14.7]} 16... Qxb4
{[%clk 0:00:04.1]} 17. axb4 {[%clk 0:02:15.6]} 17... c5 {[%clk 0:00:02.9]} 18.
Ra3 {[%clk 0:02:10.6]} 18... c4 {[%clk 0:00:02.8]} 19. Nbd2 {[%clk 0:02:06.8]}
19... b5 {[%clk 0:00:02.8]} 20. Nxb3 {[%clk 0:02:06.8]} 20... cxb3 {[%clk
0:00:03.2]} 21. Rxb3 {[%clk 0:02:07.7]} 21... Bb7 {[%clk 0:00:03.3]} 22. d6
{[%clk 0:02:07.3]} 22... Kf7 {[%clk 0:00:03.5]} 23. Rc3 {[%clk 0:02:05.5]} 23...
Rhc8 {[%clk 0:00:03.5]} 24. Rfc1 {[%clk 0:02:05.6]} 24... Bc6 {[%clk 0:00:03.5]}
25. Nd4 {[%clk 0:02:05.5]} 25... a5 {[%clk 0:00:03.6]} 26. bxa5 {[%clk
0:02:04.5]} 26... Rxa5 {[%clk 0:00:04.5]} 27. Nxc6 {[%clk 0:02:05.2]} 27... dxc6
{[%clk 0:00:04.3]} 28. Rxc6 {[%clk 0:02:04.4]} 28... Rxc6 {[%clk 0:00:04.6]} 29.
Rxc6 {[%clk 0:02:04.7]} 29... Ke6 {[%clk 0:00:05.1]} 30. g3 {[%clk 0:02:00.8]}
30... Ra2 {[%clk 0:00:05]} 31. Bc3 {[%clk 0:02:00.6]} 31... Rc2 {[%clk
0:00:04.7]} 32. Rc7 {[%clk 0:01:57.4]} 32... Kxd6 {[%clk 0:00:04.6]} 33. Be5+
{[%clk 0:01:57]} 33... fxe5 {[%clk 0:00:04.7]} 34. Rxc2 {[%clk 0:01:57.9]} 34...
b4 {[%clk 0:00:05]} 35. Kf1 {[%clk 0:01:57.3]} 35... Kd5 {[%clk 0:00:04.7]} 36.
Ke2 {[%clk 0:01:57.8]} 36... Kd4 {[%clk 0:00:05]} 37. Kd2 {[%clk 0:01:57]} 37...
b3 {[%clk 0:00:05.4]} 38. Rc3 {[%clk 0:01:56.2]} 38... b2 {[%clk 0:00:05.2]} 39.
Rb3 {[%clk 0:01:56.7]} 39... Ke4 {[%clk 0:00:04.3]} 40. f3+ {[%clk 0:01:55.8]}
40... Kf5 {[%clk 0:00:04.1]} 41. Rxb2 {[%clk 0:01:56.4]} 41... g5 {[%clk
0:00:02.9]} 42. Ke3 {[%clk 0:01:57]} 42... g4 {[%clk 0:00:03.1]} 43. fxg4+
{[%clk 0:01:57.1]} 43... Kxg4 {[%clk 0:00:04]} 44. Rb5 {[%clk 0:01:56.2]} 44...
Kh3 {[%clk 0:00:04.2]} 45. Rxe5 {[%clk 0:01:56.6]} 45... Kxh2 {[%clk 0:00:04.8]}
46. Rh5+ {[%clk 0:01:56.7]} 46... Kxg3 {[%clk 0:00:05]} 47. Rxh7 {[%clk
0:01:57.6]} 47... Kg4 {[%clk 0:00:05.4]} 48. Rf7 {[%clk 0:01:58.5]} 48... Kg5
{[%clk 0:00:05.8]} 49. Rf4 {[%clk 0:01:59.4]} 49... Kg6 {[%clk 0:00:06.5]} 50.
Ke4 {[%clk 0:02:00.3]} 50... Kg5 {[%clk 0:00:07.1]} 51. Ke5 {[%clk 0:02:01]}
51... Kg6 {[%clk 0:00:07.5]} 52. Rf5 {[%clk 0:02:01.9]} 52... Kg7 {[%clk
0:00:07.7]} 53. Rf6 {[%clk 0:02:02.5]} 1-0

[Event "*** SCC Grand Prix: Titled Tuesday Blitz"]
[Site "Chess.com"]
[Date "2020.07.21"]
[Round "10"]
[White "Gerodot71"]
[Black "HanSchut"]
[Result "1-0"]
[WhiteElo "2415"]
[BlackElo "2309"]
[TimeControl "180+1"]
[EndTime "11:58:36 PDT"]
[Termination "Gerodot71 won by resignation"]

1. d4 {[%clk 0:03:00.9]} 1... Nf6 {[%clk 0:02:59.5]} 2. c4 {[%clk 0:03:00.9]}
2... g6 {[%clk 0:02:59.6]} 3. Nc3 {[%clk 0:03:00.6]} 3... d5 {[%clk 0:03:00.2]}
4. cxd5 {[%clk 0:03:01.5]} 4... Nxd5 {[%clk 0:03:01.1]} 5. e4 {[%clk 0:03:02.1]}
5... Nxc3 {[%clk 0:03:02]} 6. bxc3 {[%clk 0:03:03]} 6... Bg7 {[%clk 0:03:02.7]}
7. Nf3 {[%clk 0:03:02.7]} 7... c5 {[%clk 0:03:03.4]} 8. Bb5+ {[%clk 0:03:02.9]}
8... Nc6 {[%clk 0:02:58.4]} 9. Rb1 {[%clk 0:03:02.4]} 9... O-O {[%clk
0:02:49.8]} 10. d5 {[%clk 0:03:01.5]} 10... Na5 {[%clk 0:02:25]} 11. O-O {[%clk
0:02:58.2]} 11... a6 {[%clk 0:02:25.1]} 12. Be2 {[%clk 0:02:56.2]} 12... b5
{[%clk 0:02:24.9]} 13. Be3 {[%clk 0:02:54.8]} 13... Qc7 {[%clk 0:02:17.9]} 14.
Qd2 {[%clk 0:02:51.5]} 14... Rd8 {[%clk 0:02:16.4]} 15. Rfd1 {[%clk 0:02:33.5]}
15... e6 {[%clk 0:02:08.5]} 16. d6 {[%clk 0:02:32.4]} 16... Qc6 {[%clk 0:02:00]}
17. e5 {[%clk 0:02:29.4]} 17... Bb7 {[%clk 0:01:51.9]} 18. Bf4 {[%clk
0:02:19.1]} 18... Qe4 {[%clk 0:01:24.5]} 19. Bd3 {[%clk 0:02:09.4]} 19... Qd5
{[%clk 0:01:18.4]} 20. Qe2 {[%clk 0:02:07.6]} 20... Qc6 {[%clk 0:01:11.4]} 21.
h4 {[%clk 0:01:58.8]} 21... h6 {[%clk 0:01:10.8]} 22. Qe3 {[%clk 0:01:53.7]}
22... Kh7 {[%clk 0:01:09.7]} 23. h5 {[%clk 0:01:53.4]} 23... Nc4 {[%clk
0:01:04]} 24. Qc1 {[%clk 0:01:46.6]} 24... Nxe5 {[%clk 0:00:51]} 25. Bxe5 {[%clk
0:01:44.6]} 25... Bxe5 {[%clk 0:00:51.9]} 26. hxg6+ {[%clk 0:01:45.3]} 26...
fxg6 {[%clk 0:00:50.8]} 27. Bxg6+ {[%clk 0:01:46.2]} 27... Kg7 {[%clk
0:00:45.4]} 28. Qe3 {[%clk 0:01:38.8]} 28... Bf6 {[%clk 0:00:19.3]} 29. Bc2
{[%clk 0:01:25.4]} 29... Rxd6 {[%clk 0:00:18.3]} 30. Re1 {[%clk 0:01:25.5]}
30... Re8 {[%clk 0:00:19.2]} 31. Rbd1 {[%clk 0:01:24]} 31... Bg5 {[%clk
0:00:16.6]} 32. Qe5+ {[%clk 0:01:21.4]} 32... Bf6 {[%clk 0:00:17.2]} 33. Qxd6
{[%clk 0:01:21.4]} 33... Qxd6 {[%clk 0:00:17]} 34. Rxd6 {[%clk 0:01:22.3]} 34...
Bxf3 {[%clk 0:00:17.5]} 35. gxf3 {[%clk 0:01:22]} 1-0

[Event "*** SCC Grand Prix: Titled Tuesday Blitz"]
[Site "Chess.com"]
[Date "2020.07.21"]
[Round "10"]
[White "Semen_Khanin"]
[Black "Witik"]
[Result "0-1"]
[WhiteElo "2746"]
[BlackElo "2641"]
[TimeControl "180+1"]
[EndTime "11:58:37 PDT"]
[Termination "Witik won by resignation"]

1. e4 {[%clk 0:03:00.9]} 1... c6 {[%clk 0:02:58.8]} 2. d4 {[%clk 0:03:01.5]}
2... d5 {[%clk 0:02:58.8]} 3. Nd2 {[%clk 0:03:02.2]} 3... dxe4 {[%clk
0:02:59.3]} 4. Nxe4 {[%clk 0:03:02.9]} 4... Nf6 {[%clk 0:03:00.1]} 5. Nxf6+
{[%clk 0:03:03.6]} 5... exf6 {[%clk 0:03:01]} 6. c3 {[%clk 0:03:04.3]} 6... Bd6
{[%clk 0:03:01.7]} 7. Bd3 {[%clk 0:03:04.5]} 7... O-O {[%clk 0:03:02.6]} 8. Qc2
{[%clk 0:03:05.1]} 8... Re8+ {[%clk 0:03:03.5]} 9. Ne2 {[%clk 0:03:05.8]} 9...
h5 {[%clk 0:03:04.4]} 10. O-O {[%clk 0:03:06]} 10... h4 {[%clk 0:03:04.5]} 11.
Nf4 {[%clk 0:03:06.2]} 11... Nd7 {[%clk 0:02:42]} 12. Qd1 {[%clk 0:03:05.7]}
12... Nf8 {[%clk 0:02:35.8]} 13. Qh5 {[%clk 0:03:06.2]} 13... f5 {[%clk
0:02:35.3]} 14. g3 {[%clk 0:02:47.2]} 14... Bxf4 {[%clk 0:01:51.9]} 15. Bxf4
{[%clk 0:02:44.5]} 15... Ng6 {[%clk 0:01:52]} 16. Bg5 {[%clk 0:02:36.9]} 16...
Qd5 {[%clk 0:01:51.8]} 17. Bxh4 {[%clk 0:02:30.4]} 17... Bd7 {[%clk 0:01:41.9]}
18. Bg5 {[%clk 0:02:21.4]} 18... c5 {[%clk 0:01:41.7]} 19. Be3 {[%clk
0:02:19.2]} 19... Bc6 {[%clk 0:01:38.9]} 20. f3 {[%clk 0:02:03.9]} 20... Rxe3
{[%clk 0:01:38.4]} 21. Bxf5 {[%clk 0:02:04.1]} 21... cxd4 {[%clk 0:01:29.5]} 22.
Bxg6 {[%clk 0:01:56.7]} 22... fxg6 {[%clk 0:01:28.5]} 23. Qxg6 {[%clk 0:01:57]}
23... Rxf3 {[%clk 0:01:26.1]} 24. Rxf3 {[%clk 0:01:55.8]} 24... Qxf3 {[%clk
0:01:25.9]} 25. Qe6+ {[%clk 0:01:56]} 25... Kh7 {[%clk 0:01:09.2]} 26. Qh3+
{[%clk 0:01:55.6]} 26... Kg6 {[%clk 0:01:09.2]} 27. Qe6+ {[%clk 0:01:54]} 27...
Kh5 {[%clk 0:01:02.6]} 28. Qh3+ {[%clk 0:01:23.6]} 28... Kg5 {[%clk 0:01:00.5]}
29. Rf1 {[%clk 0:00:36.9]} 29... Qh1+ {[%clk 0:00:57.7]} 30. Kf2 {[%clk
0:00:36.9]} 30... Rf8+ {[%clk 0:00:57.6]} 31. Ke1 {[%clk 0:00:37.4]} 31... Qe4+
{[%clk 0:00:42.2]} 0-1

[Event "*** SCC Grand Prix: Titled Tuesday Blitz"]
[Site "Chess.com"]
[Date "2020.07.21"]
[Round "10"]
[White "Munkhzul_Turmunkh"]
[Black "Bulldog167"]
[Result "0-1"]
[WhiteElo "2613"]
[BlackElo "2748"]
[TimeControl "180+1"]
[EndTime "11:58:39 PDT"]
[Termination "Bulldog167 won by resignation"]

1. e4 {[%clk 0:03:00.9]} 1... e6 {[%clk 0:02:59.9]} 2. d4 {[%clk 0:03:00.3]}
2... d5 {[%clk 0:02:59.9]} 3. exd5 {[%clk 0:03:01.2]} 3... exd5 {[%clk
0:02:59.8]} 4. Bd3 {[%clk 0:03:01.2]} 4... Nc6 {[%clk 0:02:57.4]} 5. c3 {[%clk
0:02:57]} 5... Bd6 {[%clk 0:02:54.8]} 6. Ne2 {[%clk 0:02:56]} 6... Qf6 {[%clk
0:02:28.1]} 7. Be3 {[%clk 0:02:07.8]} 7... Nge7 {[%clk 0:02:26.9]} 8. Nd2 {[%clk
0:02:05.7]} 8... Nf5 {[%clk 0:02:15.4]} 9. Bf4 {[%clk 0:01:37.9]} 9... Nh4
{[%clk 0:02:03.5]} 10. O-O {[%clk 0:00:45.8]} 10... Bxf4 {[%clk 0:02:03]} 11.
Nxf4 {[%clk 0:00:46.7]} 11... Qxf4 {[%clk 0:02:03.6]} 12. g3 {[%clk 0:00:40.4]}
12... Qxd2 {[%clk 0:02:03.6]} 13. Re1+ {[%clk 0:00:24.8]} 13... Be6 {[%clk
0:01:51.6]} 14. Qh5 {[%clk 0:00:18.5]} 14... O-O-O {[%clk 0:01:39.7]} 15. Rad1
{[%clk 0:00:15.4]} 15... Qh6 {[%clk 0:01:22.5]} 16. Qxh4 {[%clk 0:00:15]} 16...
Qxh4 {[%clk 0:01:22.4]} 17. gxh4 {[%clk 0:00:15.9]} 17... Rde8 {[%clk
0:01:22.6]} 18. Kg2 {[%clk 0:00:14.5]} 18... h5 {[%clk 0:01:20]} 19. f3 {[%clk
0:00:13.8]} 19... g6 {[%clk 0:01:20.1]} 20. Kg3 {[%clk 0:00:13.8]} 20... Ne7
{[%clk 0:01:18.3]} 21. Kf4 {[%clk 0:00:13.6]} 21... Bf5 {[%clk 0:01:17]} 22. Bb5
{[%clk 0:00:12.5]} 22... c6 {[%clk 0:01:16.6]} 23. Bf1 {[%clk 0:00:12.6]} 23...
f6 {[%clk 0:01:16.2]} 24. Re3 {[%clk 0:00:11.5]} 24... Kd7 {[%clk 0:01:16]} 25.
Rde1 {[%clk 0:00:11.8]} 25... Nc8 {[%clk 0:01:16.6]} 26. b4 {[%clk 0:00:09.9]}
26... Rxe3 {[%clk 0:01:16.5]} 27. Rxe3 {[%clk 0:00:10.8]} 27... Re8 {[%clk
0:01:17]} 28. a4 {[%clk 0:00:10.1]} 28... Rxe3 {[%clk 0:01:17]} 29. Kxe3 {[%clk
0:00:11]} 29... g5 {[%clk 0:01:16.9]} 30. hxg5 {[%clk 0:00:10.6]} 30... fxg5
{[%clk 0:01:17.8]} 31. Kf2 {[%clk 0:00:09.4]} 31... Nd6 {[%clk 0:01:18]} 32. Kg3
{[%clk 0:00:09.4]} 32... h4+ {[%clk 0:01:16.9]} 33. Kf2 {[%clk 0:00:09.2]} 33...
b6 {[%clk 0:01:16.6]} 34. Ke3 {[%clk 0:00:07.4]} 34... a5 {[%clk 0:01:16.7]} 35.
bxa5 {[%clk 0:00:06.6]} 35... bxa5 {[%clk 0:01:17.6]} 0-1

[Event "*** SCC Grand Prix: Titled Tuesday Blitz"]
[Site "Chess.com"]
[Date "2020.07.21"]
[Round "10"]
[White "Jbd735"]
[Black "Khazieva_Elza"]
[Result "1-0"]
[WhiteElo "2473"]
[BlackElo "2356"]
[TimeControl "180+1"]
[EndTime "11:58:48 PDT"]
[Termination "Jbd735 won by checkmate"]

1. e4 {[%clk 0:03:00.9]} 1... c5 {[%clk 0:02:59.8]} 2. Nf3 {[%clk 0:03:00.8]}
2... d6 {[%clk 0:03:00.1]} 3. d4 {[%clk 0:03:01.1]} 3... cxd4 {[%clk 0:03:01]}
4. Nxd4 {[%clk 0:03:01.6]} 4... Nf6 {[%clk 0:03:01.5]} 5. Nc3 {[%clk 0:03:02]}
5... Nc6 {[%clk 0:03:01.8]} 6. Bc4 {[%clk 0:02:56.1]} 6... e5 {[%clk 0:03:01.6]}
7. Nf5 {[%clk 0:02:47.4]} 7... Bxf5 {[%clk 0:03:01]} 8. exf5 {[%clk 0:02:46.6]}
8... Qd7 {[%clk 0:03:01.5]} 9. Bg5 {[%clk 0:02:41.6]} 9... Qxf5 {[%clk
0:02:54.1]} 10. Bxf6 {[%clk 0:02:40.9]} 10... Qxf6 {[%clk 0:02:54.5]} 11. Nd5
{[%clk 0:02:40.1]} 11... Qd8 {[%clk 0:02:52.8]} 12. c3 {[%clk 0:02:32.3]} 12...
Be7 {[%clk 0:02:51.6]} 13. g4 {[%clk 0:02:19.6]} 13... O-O {[%clk 0:02:26.9]}
14. Qf3 {[%clk 0:02:13.7]} 14... Bh4 {[%clk 0:02:05.2]} 15. O-O-O {[%clk
0:02:10.2]} 15... Rc8 {[%clk 0:01:49.4]} 16. Bd3 {[%clk 0:02:01.1]} 16... Nd4
{[%clk 0:01:41.9]} 17. Qe4 {[%clk 0:01:58.5]} 17... f5 {[%clk 0:01:24.8]} 18.
gxf5 {[%clk 0:01:57.6]} 18... Nxf5 {[%clk 0:01:16.8]} 19. Kb1 {[%clk 0:01:57.3]}
19... g6 {[%clk 0:01:00.6]} 20. f4 {[%clk 0:01:48.4]} 20... Bf6 {[%clk
0:00:49.3]} 21. Rhg1 {[%clk 0:01:44.7]} 21... Bg7 {[%clk 0:00:47.7]} 22. h4
{[%clk 0:01:24.9]} 22... Nxh4 {[%clk 0:00:36.4]} 23. Rh1 {[%clk 0:01:21.6]}
23... Nf5 {[%clk 0:00:23.3]} 24. Rdg1 {[%clk 0:01:21.1]} 24... exf4 {[%clk
0:00:20.4]} 25. Qe6+ {[%clk 0:01:17.4]} 25... Rf7 {[%clk 0:00:16.9]} 26. Rxh7
{[%clk 0:01:05.6]} 26... Qe8 {[%clk 0:00:15.2]} 27. Bxf5 {[%clk 0:00:52]} 27...
gxf5 {[%clk 0:00:12.8]} 28. Nf6+ {[%clk 0:00:50.3]} 28... Kf8 {[%clk 0:00:10.9]}
29. Rh8+ {[%clk 0:00:48.2]} 29... Bxh8 {[%clk 0:00:11]} 30. Rg8# {[%clk
0:00:48.7]} 1-0

[Event "*** SCC Grand Prix: Titled Tuesday Blitz"]
[Site "Chess.com"]
[Date "2020.07.21"]
[Round "10"]
[White "monalize"]
[Black "kallerotmg"]
[Result "1-0"]
[WhiteElo "2272"]
[BlackElo "2148"]
[TimeControl "180+1"]
[EndTime "11:58:51 PDT"]
[Termination "monalize won by resignation"]

1. e4 {[%clk 0:03:00.9]} 1... c6 {[%clk 0:02:58.7]} 2. d4 {[%clk 0:03:00]} 2...
d5 {[%clk 0:02:49.1]} 3. Nc3 {[%clk 0:03:00.9]} 3... g6 {[%clk 0:02:43.9]} 4. h3
{[%clk 0:02:57.5]} 4... Bg7 {[%clk 0:02:37.9]} 5. Nf3 {[%clk 0:02:57.2]} 5...
Nf6 {[%clk 0:02:30]} 6. e5 {[%clk 0:02:55.5]} 6... Ne4 {[%clk 0:02:29.4]} 7.
Nxe4 {[%clk 0:02:54.2]} 7... dxe4 {[%clk 0:02:28.9]} 8. Ng5 {[%clk 0:02:54.9]}
8... c5 {[%clk 0:02:10.8]} 9. dxc5 {[%clk 0:02:29.2]} 9... Qxd1+ {[%clk
0:01:16.2]} 10. Kxd1 {[%clk 0:02:28.2]} 10... Bf5 {[%clk 0:01:11.5]} 11. g4
{[%clk 0:02:26.4]} 11... Bd7 {[%clk 0:01:11.3]} 12. Nxe4 {[%clk 0:02:24.9]}
12... Bc6 {[%clk 0:01:11]} 13. f3 {[%clk 0:02:17]} 13... Bxe4 {[%clk 0:01:05.6]}
14. fxe4 {[%clk 0:02:16.3]} 14... Bxe5 {[%clk 0:01:04.7]} 15. c3 {[%clk
0:02:14.9]} 15... Nd7 {[%clk 0:01:03.6]} 16. Be3 {[%clk 0:02:10.7]} 16... O-O-O
{[%clk 0:01:03.9]} 17. Kc2 {[%clk 0:02:09.6]} 17... Nf6 {[%clk 0:00:55.3]} 18.
Bg2 {[%clk 0:02:07.2]} 18... h5 {[%clk 0:00:53.3]} 19. g5 {[%clk 0:02:02.9]}
19... Nd7 {[%clk 0:00:50.3]} 20. Rhf1 {[%clk 0:01:57.6]} 20... f6 {[%clk
0:00:48.4]} 21. gxf6 {[%clk 0:01:54.6]} 21... exf6 {[%clk 0:00:49.3]} 22. Rad1
{[%clk 0:01:52.4]} 22... Kc7 {[%clk 0:00:48.8]} 23. b4 {[%clk 0:01:50.9]} 23...
Nf8 {[%clk 0:00:45.7]} 24. Rxd8 {[%clk 0:01:41.4]} 24... Kxd8 {[%clk 0:00:46.6]}
25. c6 {[%clk 0:01:36.6]} 25... b6 {[%clk 0:00:45.5]} 26. a4 {[%clk 0:01:34.3]}
26... Ne6 {[%clk 0:00:43.9]} 27. Kb3 {[%clk 0:01:32]} 27... Kc7 {[%clk
0:00:42.1]} 28. b5 {[%clk 0:01:31.2]} 28... Rd8 {[%clk 0:00:42.4]} 29. Kc2
{[%clk 0:01:28.6]} 29... g5 {[%clk 0:00:37.4]} 30. Bf3 {[%clk 0:01:25.5]} 30...
h4 {[%clk 0:00:34.6]} 31. Rd1 {[%clk 0:01:23.6]} 31... Rxd1 {[%clk 0:00:31.1]}
32. Bxd1 {[%clk 0:01:23.9]} 32... Nc5 {[%clk 0:00:20.1]} 33. Bxc5 {[%clk
0:01:22.7]} 33... bxc5 {[%clk 0:00:21]} 34. Kd3 {[%clk 0:01:19.8]} 34... a6
{[%clk 0:00:20.2]} 35. Kc4 {[%clk 0:01:18.4]} 35... axb5+ {[%clk 0:00:18.7]} 36.
axb5 {[%clk 0:01:15.4]} 36... Bd6 {[%clk 0:00:18.7]} 37. Kd5 {[%clk 0:01:13.7]}
37... Be5 {[%clk 0:00:14.8]} 38. Kxc5 {[%clk 0:01:11.7]} 38... Bxc3 {[%clk
0:00:15.1]} 39. b6+ {[%clk 0:01:11.3]} 39... Kc8 {[%clk 0:00:14.8]} 40. Bg4+
{[%clk 0:01:10.1]} 1-0